fUST/lending_fUST_20240629
["ID","MTS","AMOUNT","RATE_DAILY","PERIOD"]
[330605995,1719610247340,-7310.94,0.00026575,4]
[330605996,1719610247349,-2710.18,0.00026575,4]
[330605997,1719610247359,-500.0,0.00026575,4]
[330605998,1719610247368,-660.1,0.00026575,4]
[330605999,1719610247377,-566.43,0.00026575,4]
[330606000,1719610247389,-1327.27,0.00026575,4]
[330606001,1719610247400,-3231.22,0.00026575,4]
[330606002,1719610247409,-1988.33,0.00026849,4]
[330606003,1719610247418,-1329.15,0.00026849,4]
[330606004,1719610247427,-5583.39,0.00026849,4]
[330606005,1719610247438,-3529.81,0.00026849,4]
[330606006,1719610247458,-7310.94,0.00026849,4]
[330606007,1719610247472,-2710.18,0.00026849,4]
[330606008,1719610247482,-582.55610693,0.00026849,4]
[330606009,1719610247492,-660.1,0.00026849,4]
[330606010,1719610247502,-566.43,0.00026849,4]
[330606011,1719610247513,-1327.27,0.00026849,4]
[330606013,1719610247523,-3231.22,0.00026849,4]
[330606015,1719610247533,-151.31843755,0.00027,5]
[330606016,1719610247543,-151.30332686,0.00027,5]
[330606017,1719610247552,-1988.33,0.00027123,4]
[330606018,1719610247562,-1329.15,0.00027123,4]
[330606019,1719610247572,-5583.39,0.00027123,4]
[330606020,1719610247581,-3529.81,0.00027123,4]
[330606021,1719610247591,-7310.94,0.00027123,4]
[330606022,1719610247600,-2710.18,0.00027123,4]
[330606023,1719610247610,-660.1,0.00027123,4]
[330606024,1719610247619,-566.43,0.00027123,4]
[330606025,1719610247629,-1327.27,0.00027123,4]
[330606026,1719610247638,-3231.22,0.00027123,4]
[330606027,1719610247647,-340.029076,0.00027195,2]
[330606028,1719610247657,-1988.33,0.00027397,4]
[330606029,1719610247666,-1329.15,0.00027397,4]
[330606030,1719610247676,-5583.39,0.00027397,4]
[330606031,1719610247685,-3529.81,0.00027397,4]
[330606032,1719610247696,-7310.94,0.00027397,4]
[330606033,1719610247706,-2710.18,0.00027397,4]
[330606034,1719610247717,-660.1,0.00027397,4]
[330606035,1719610247726,-566.43,0.00027397,4]
[330606036,1719610247736,-1327.27,0.00027397,4]
[330606037,1719610247745,-3231.22,0.00027397,4]
[330606038,1719610247755,-174.98147873,0.000274,2]
[330606039,1719610247765,-909.47482687,0.000275,30]
[330606040,1719610247774,-151.31843755,0.0002754,5]
[330606041,1719610247783,-151.30332686,0.0002754,5]
[330606042,1719610247792,-1988.33,0.00027671,4]
[330606043,1719610247801,-1329.15,0.00027671,4]
[330606044,1719610247810,-5583.39,0.00027671,4]
[330606045,1719610247820,-3529.81,0.00027671,4]
[330606046,1719610247829,-7310.94,0.00027671,4]
[330606047,1719610247839,-2710.18,0.00027671,4]
[330606048,1719610247848,-660.1,0.00027671,4]
[330606049,1719610247857,-566.43,0.00027671,4]
[330606050,1719610247867,-1327.27,0.00027671,4]
[330606051,1719610247877,-3231.22,0.00027671,4]
[330606052,1719610247887,-1988.33,0.00027945,4]
[330606053,1719610247897,-1329.15,0.00027945,4]
[330606054,1719610247907,-5583.39,0.00027945,4]
[330606055,1719610247917,-3529.81,0.00027945,4]
[330606056,1719610247926,-7310.94,0.00027945,4]
[330606057,1719610247935,-2710.18,0.00027945,4]
[330606058,1719610247945,-660.1,0.00027945,4]
[330606059,1719610247954,-566.43,0.00027945,4]
[330606060,1719610247963,-1327.27,0.00027945,4]
[330606061,1719610247973,-3231.22,0.00027945,4]
[330606062,1719610247983,-268.04350888,0.00028,2]
[330606063,1719610247992,-504.7449464,0.00028,2]
[330606064,1719610248002,-151.31843755,0.0002808,5]
[330606065,1719610248014,-151.30332686,0.0002808,5]
[330606066,1719610248024,-1988.34,0.00028219,4]
[330606067,1719610248035,-1329.1689302,0.00028219,4]
[330606068,1719610248045,-5583.4440574,0.00028219,4]
[330606069,1719610248054,-3530.02083979,0.00028219,4]
[330606070,1719610248064,-7310.96642819,0.00028219,4]
[330606071,1719610248073,-2710.22,0.00028219,4]
[330606072,1719610248083,-660.31314955,0.00028219,4]
[330606073,1719610248092,-566.65628188,0.00028219,4]
[330606074,1719610248102,-1327.45541219,0.00028219,4]
[330606075,1719610248111,-3231.45734549,0.00028219,4]
[330606076,1719610248121,-188.94282529,0.00028226,2]
[330606077,1719610248130,-154.80649189,0.00028226,2]
[330606078,1719610248139,-151.31843755,0.0002862,5]
[330606079,1719610248149,-151.30332686,0.0002862,5]
[330606080,1719610248159,-153.0,0.000287,2]
[330606081,1719610248168,-153.0,0.000287,2]
[330606082,1719610248178,-153.0,0.000287,2]
[330606083,1719610248188,-153.0,0.000287,2]
[330606084,1719610248198,-153.0,0.000287,2]
[330606085,1719610248207,-153.0,0.000287,2]
[330606086,1719610248217,-153.0,0.00028716,2]
[330606087,1719610248227,-153.0,0.00028716,2]
[330606088,1719610248236,-153.0,0.00028716,2]
[330606089,1719610248246,-153.0,0.00028716,2]
[330606090,1719610248256,-153.0,0.00028716,2]
[330606091,1719610248266,-153.0,0.00028716,2]
[330606092,1719610248275,-151.31843755,0.0002916,5]
[330606093,1719610248285,-151.30332686,0.0002916,5]
[330606094,1719610248294,-153.0,0.00029393,2]
[330606095,1719610248307,-153.0,0.00029393,2]
[330606096,1719610248316,-153.0,0.00029393,2]
[330606097,1719610248326,-153.0,0.00029393,2]
[330606098,1719610248335,-153.0,0.00029393,2]
[330606099,1719610248345,-153.0,0.00029393,2]
[330606100,1719610248355,-153.0,0.00029393,2]
[330606101,1719610248364,-153.0,0.00029393,2]
[330606102,1719610248374,-153.0,0.00029393,2]
[330606103,1719610248388,-153.0,0.00029393,2]
[330606104,1719610248401,-153.0,0.00029393,2]
[330606105,1719610248410,-153.0,0.00029393,2]
[330606106,1719610248419,-153.0,0.00029393,2]
[330606107,1719610248431,-153.0,0.00029393,2]
[330606108,1719610248440,-153.0,0.00029393,2]
[330606109,1719610248451,-153.0,0.00029393,2]
[330606110,1719610248460,-153.0,0.00029393,2]
[330606111,1719610248470,-153.0,0.00029393,2]
[330606112,1719610248479,-153.0,0.00029393,2]
[330606113,1719610248489,-151.31843755,0.000297,5]
[330606114,1719610248499,-151.30332686,0.000297,5]
[330606115,1719610248510,-273.16287585,0.00029887,2]
[330606116,1719610248520,-1824.51464482,0.0003,4]
[330606117,1719610248530,-1232.52623168,0.00031,4]
[330606118,1719610248540,-524.7988592,0.000325,60]
[330606119,1719610248550,-171.28,0.00032616,2]
[330606120,1719610248560,-530.74411189,0.00033,30]
[330606121,1719610248570,-340.029076,0.00033295,2]
[330606122,1719610248580,-3211.05,0.00035616,3]
[330606123,1719610248589,-2675.88,0.00035616,3]
[330606124,1719610248600,-166.666666,0.00037101,2]
[330606125,1719610248609,-302.73400961,0.00038,7]
[330606126,1719610248619,-340.029076,0.00039394,2]
[330606127,1719610248629,-150.80395486,0.00039472,2]
[330606128,1719610248639,-5796.44432001,0.0003999,4]
[330606129,1719610248648,-301.60790972,0.00040135,4]
[330606130,1719610248658,-187.47009277,0.00044,4]
[330606131,1719610248668,-152.33517351,0.0004501,57]
[330606132,1719610248678,-340.029076,0.00045494,2]
[330606133,1719610248687,-166.666666,0.00048199,2]
[330606134,1719610248698,-54017.34476338,0.000498,90]
[330606135,1719610248716,-19887.95175,0.000498,90]
[330606141,1719610395195,168.1375,0.00014904,2]
[330606151,1719610644833,5156.69232868,0.00014998,2]
[330606154,1719610667904,268.17032126,0.00014999,7]
[330606158,1719610686240,154.82195475,0.00014999,2]
[330606166,1719610780365,2825.49865465,0.00015,2]
[330606167,1719610867925,1914.02350809,0.00014999,2]
[330606168,1719610891880,1313.33059803,0.00014999,2]
[330606169,1719610930133,490.88303882,0.00014999,2]
[330606170,1719610932937,416.95941362,0.00014999,7]
[330606171,1719610952904,619.10238857,0.00015,2]
[330606172,1719610971744,2345.81560556,0.00014999,2]
[330606173,1719611004621,168.1375,0.00014904,2]
[330606174,1719611036984,528.63416526,0.00014999,2]
[330606175,1719611113505,210.22902618,0.00014999,2]
[330606176,1719611279941,668.25105163,0.00014999,2]
[330606177,1719611291688,199.83014591,0.00014999,2]
[330606178,1719611354119,-12580.91681198,0.00016255,2]
[330606179,1719611368136,-4650.76727908,0.00016255,2]
[330606180,1719611368156,-155.000775,0.00016255,2]
[330606215,1719611437964,-196.325558,0.00019934,2]
[330606216,1719611437975,-408.338148,0.00019934,2]
[330606217,1719611437986,-228.6642487,0.00020291,2]
[330606218,1719611437998,-1395.7636295,0.000204,2]
[330606219,1719611438010,-1198.8828249,0.000204,2]
[330606220,1719611438020,-328.146807,0.00021096,2]
[330606221,1719611438030,-126.06133112,0.00021917,4]
[330606231,1719611440271,-500.0,0.00021917,4]
[330606232,1719611440282,-318.90391145,0.00021917,4]
[330606233,1719611440292,-500.0,0.00021917,4]
[330606234,1719611440302,-500.0,0.00021917,4]
[330606235,1719611440312,-500.0,0.00021917,4]
[330606236,1719611440322,-333.02151445,0.00021917,4]
[330606237,1719611440332,-310.26,0.00021917,4]
[330606238,1719611440343,-500.0,0.00021917,4]
[330606239,1719611440353,-500.0,0.00021917,4]
[330606240,1719611440363,-500.0,0.00021917,4]
[330606241,1719611440373,-500.0,0.00021917,4]
[330606242,1719611440384,-500.0,0.00021917,4]
[330606243,1719611440394,-500.0,0.00021917,4]
[330606244,1719611440404,-500.0,0.00021917,4]
[330606245,1719611440414,-500.0,0.00021917,4]
[330606246,1719611440423,-500.0,0.00021917,4]
[330606247,1719611440433,-500.0,0.00021917,4]
[330606248,1719611440443,-500.0,0.00021917,4]
[330606249,1719611440453,-500.0,0.00021917,4]
[330606250,1719611440463,-500.0,0.00021917,4]
[330606251,1719611440473,-500.0,0.00021917,4]
[330606252,1719611440483,-500.0,0.00021917,4]
[330606253,1719611440493,-416.45246057,0.00021917,4]
[330606254,1719611440822,-83.54753943,0.00021917,4]
[330606255,1719611440831,-500.0,0.00021917,4]
[330606256,1719611440840,-240.41970725,0.00021917,4]
[330606257,1719611440850,-500.0,0.00021917,4]
[330606258,1719611440861,-500.0,0.00021917,4]
[330606259,1719611440871,-500.0,0.00021917,4]
[330606260,1719611440880,-500.0,0.00021917,4]
[330606261,1719611440890,-500.0,0.00021917,4]
[330606262,1719611440900,-500.0,0.00021917,4]
[330606263,1719611440909,-500.0,0.00021917,4]
[330606264,1719611440919,-500.0,0.00021917,4]
[330606265,1719611440932,-500.0,0.00021917,4]
[330606266,1719611440942,-500.0,0.00021917,4]
[330606267,1719611440952,-500.0,0.00021917,4]
[330606268,1719611440965,-500.0,0.00021917,4]
[330606269,1719611440975,-500.0,0.00021917,4]
[330606270,1719611440985,-500.0,0.00021917,4]
[330606271,1719611440994,-500.0,0.00021917,4]
[330606272,1719611441004,-530.92646483,0.00021917,4]
[330606273,1719611441014,-500.0,0.00021917,4]
[330606274,1719611441024,-500.0,0.00021917,4]
[330606275,1719611441036,-500.0,0.00021917,4]
[330606276,1719611441045,-500.0,0.00021917,4]
[330606277,1719611441055,-500.0,0.00021917,4]
[330606278,1719611441064,-500.74229188,0.00021917,4]
[330606279,1719611441075,-500.75733387,0.00021917,4]
[330606280,1719611441086,-500.0,0.00021917,4]
[330606281,1719611441096,-500.0,0.00021917,4]
[330606282,1719611441107,-500.0,0.00021917,4]
[330606283,1719611441116,-500.0,0.00021917,4]
[330606284,1719611441126,-500.0,0.00021917,4]
[330606285,1719611441136,-500.0,0.00021917,4]
[330606286,1719611441145,-500.0,0.00021917,4]
[330606287,1719611441157,-316.58535029,0.00021917,4]
[330606288,1719611441167,-364.28042031,0.00021917,4]
[330606289,1719611441180,-135.71957969,0.00021917,4]
[330606290,1719611441190,-500.0,0.00021917,4]
[330606291,1719611441199,-533.21,0.00021917,4]
[330606292,1719611441209,-562.04,0.00021917,4]
[330606293,1719611441219,-500.0,0.00021917,4]
[330606294,1719611441228,-500.0,0.00021917,4]
[330606295,1719611441238,-518.33,0.00021917,4]
[330606296,1719611441247,-779.63,0.00021917,4]
[330606297,1719611441257,-501.70789697,0.00021917,4]
[330606298,1719611441266,-500.0,0.00021917,4]
[330606299,1719611441275,-500.0,0.00021917,4]
[330606300,1719611441285,-500.0,0.00021917,4]
[330606301,1719611441294,-500.0,0.00021917,4]
[330606302,1719611441303,-622.36,0.00021917,4]
[330606303,1719611441313,-1050.94,0.00021917,4]
[330606304,1719611441322,-500.0,0.00021917,4]
[330606305,1719611441332,-500.0,0.00021917,4]
[330606306,1719611441341,-502.8911012,0.00021917,4]
[330606307,1719611441351,-500.0,0.00021917,4]
[330606308,1719611441360,-500.0,0.00021917,4]
[330606309,1719611441369,-500.0,0.00021917,4]
[330606310,1719611441378,-613.28,0.00021917,4]
[330606311,1719611441388,-500.0,0.00021917,4]
[330606312,1719611441398,-500.0,0.00021917,4]
[330606313,1719611441411,-516.58955884,0.00021917,4]
[330606314,1719611441420,-500.0,0.00021917,4]
[330606315,1719611441432,-500.0,0.00021917,4]
[330606316,1719611441442,-500.0,0.00021917,4]
[330606317,1719611441452,-644.25,0.00021917,2]
[330606318,1719611441461,-500.0,0.00021917,4]
[330606319,1719611441471,-500.0,0.00021917,4]
[330606320,1719611441481,-500.0,0.00021917,4]
[330606321,1719611441490,-500.0,0.00021917,4]
[330606322,1719611441499,-504.10189876,0.00021917,4]
[330606323,1719611441509,-1140.72,0.00021917,4]
[330606324,1719611441518,-171.39075581,0.00021917,4]
[330606325,1719611441528,-500.0,0.00021917,4]
[330606326,1719611441538,-500.0,0.00021917,4]
[330606327,1719611441547,-500.0,0.00021917,4]
[330606328,1719611441558,-500.0,0.00021917,4]
[330606329,1719611441567,-307.08854779,0.00021917,4]
[330606330,1719611441577,-500.0,0.00021917,4]
[330606331,1719611441587,-500.0,0.00021917,4]
[330606332,1719611441596,-500.0,0.00021917,4]
[330606333,1719611441606,-500.0,0.00021917,4]
[330606334,1719611441616,-500.0,0.00021917,4]
[330606335,1719611441625,-500.0,0.00021917,4]
[330606336,1719611441634,-500.0,0.00021917,4]
[330606337,1719611441644,-500.0,0.00021917,4]
[330606338,1719611441656,-500.0,0.00021917,4]
[330606339,1719611441665,-500.0,0.00021917,4]
[330606340,1719611441674,-500.0,0.00021917,4]
[330606341,1719611441684,-500.0,0.00021917,4]
[330606342,1719611441694,-510.66732589,0.00021917,4]
[330606343,1719611441704,-500.0,0.00021917,4]
[330606344,1719611441713,-500.0,0.00021917,4]
[330606345,1719611441723,-373.93866888,0.00021917,4]
[330606346,1719611441733,-500.0,0.00021917,4]
[330606347,1719611441742,-166.666666,0.00021918,2]
[330606348,1719611441753,-181.423834,0.00022127,2]
[330606349,1719611441762,-500.0,0.00022191,4]
[330606350,1719611441773,-500.0,0.00022191,4]
[330606351,1719611441786,-512.5664214,0.00022191,4]
[330606352,1719611441796,-779.63,0.00022191,4]
[330606353,1719611441805,-622.36,0.00022191,4]
[330606354,1719611441815,-1050.94,0.00022191,4]
[330606355,1719611441824,-158.82,0.00022191,4]
[330606356,1719611441834,-500.0,0.00022191,4]
[330606357,1719611441844,-449.58,0.00022191,4]
[330606358,1719611441855,-166.666666,0.00022431,2]
[330606359,1719611441864,-779.63,0.00022465,4]
[330606360,1719611441874,-622.36,0.00022465,4]
[330606361,1719611441884,-1050.94,0.00022465,4]
[330606362,1719611441893,-500.0,0.00022465,4]
[330606363,1719611441904,-779.63,0.00022739,4]
[330606364,1719611441914,-1050.94,0.00022739,4]
[330606365,1719611441923,-622.36,0.00022739,4]
[330606366,1719611441932,-500.0,0.00022739,4]
[330606367,1719611441942,-166.666666,0.00022944,2]
[330606368,1719611441951,-154.79103211,0.00023,2]
[330606369,1719611441961,-43141.03846343,0.00023003,2]
[330606370,1719611441975,-5948.77232197,0.00023003,2]
[330606371,1719611441984,-779.63,0.00023013,4]
[330606372,1719611441993,-1050.94,0.00023013,4]
[330606373,1719611442002,-622.36,0.00023013,4]
[330606374,1719611442013,-500.0,0.00023013,4]
[330606375,1719611442022,-779.63,0.00023287,4]
[330606376,1719611442032,-1050.94,0.00023287,4]
[330606377,1719611442042,-622.36,0.00023287,4]
[330606378,1719611442052,-500.0,0.00023287,4]
[330606379,1719611442061,-166.666666,0.00023456,2]
[330606380,1719611442071,-779.63,0.00023561,4]
[330606381,1719611442080,-1050.94,0.00023561,4]
[330606382,1719611442090,-622.36,0.00023561,4]
[330606383,1719611442099,-599.8,0.00023561,4]
[330606384,1719611442109,-1140.72,0.00023834,4]
[330606385,1719611442118,-779.63,0.00023835,4]
[330606386,1719611442127,-1050.94,0.00023835,4]
[330606387,1719611442137,-622.36,0.00023835,4]
[330606388,1719611442148,-166.666666,0.00023969,2]
[330606389,1719611442157,-779.63,0.00024109,4]
[330606390,1719611442166,-1050.94,0.00024109,4]
[330606391,1719611442176,-622.36,0.00024109,4]
[330606392,1719611442186,-6071.46629594,0.00024358,2]
[330606393,1719611442196,-6071.46629594,0.00024358,2]
[330606394,1719611442207,-779.63,0.00024383,4]
[330606395,1719611442216,-1050.94,0.00024383,4]
[330606396,1719611442226,-622.36,0.00024383,4]
[330606397,1719611442235,-166.666666,0.00024482,2]
[330606398,1719611442245,-779.63,0.00024657,4]
[330606399,1719611442254,-1050.94,0.00024657,4]
[330606400,1719611442263,-622.36,0.00024657,4]
[330606401,1719611442273,-380.0,0.00024658,2]
[330606402,1719611442282,-150.0,0.00024875,2]
[330606403,1719611442292,-876.0,0.00024875,2]
[330606404,1719611442301,-779.63,0.00024931,4]
[330606405,1719611442311,-1050.94,0.00024931,4]
[330606406,1719611442320,-622.36,0.00024931,4]
[330606407,1719611442329,-154.83742071,0.00025108,2]
[330606408,1719611442349,-1914.16893836,0.00025195,7]
[330606409,1719611442360,-18732.83240069,0.00025195,2]
[330606410,1719611442375,-30356.97838471,0.00025195,2]
[330606411,1719611442386,-779.63,0.00025205,4]
[330606412,1719611442397,-1050.94,0.00025205,4]
[330606413,1719611442406,-622.36,0.00025205,4]
[330606414,1719611442416,-779.63,0.00025479,4]
[330606415,1719611442425,-1050.94,0.00025479,4]
[330606416,1719611442435,-622.36,0.00025479,4]
[330606417,1719611442444,-77928.36749603,0.00025491,2]
[330606418,1719611442457,-20251.25407487,0.00025491,2]
[330606419,1719611442467,-100000.0,0.00025501,2]
[330606420,1719611442476,-30000.0,0.00025501,2]
[330606421,1719611442486,-779.63,0.00025753,4]
[330606422,1719611442496,-1050.94,0.00025753,4]
[330606423,1719611442505,-622.36,0.00025753,4]
[330606424,1719611442514,-779.63,0.00026027,4]
[330606425,1719611442524,-1050.94,0.00026027,4]
[330606426,1719611442533,-622.36,0.00026027,4]
[330606427,1719611442543,-779.63,0.00026301,4]
[330606428,1719611442553,-1050.94,0.00026301,4]
[330606429,1719611442562,-622.36,0.00026301,4]
[330606430,1719611442573,-150.0,0.000265,2]
[330606431,1719611442583,-779.63,0.00026575,4]
[330606432,1719611442592,-1050.94,0.00026575,4]
[330606433,1719611442602,-622.36,0.00026575,4]
[330606434,1719611442612,-1140.72,0.00026838,4]
[330606436,1719611442621,-1140.72,0.00026838,4]
[330606438,1719611442630,-779.63,0.00026849,4]
[330606439,1719611442640,-1050.94,0.00026849,4]
[330606441,1719611442650,-622.36,0.00026849,4]
[330606443,1719611442660,-151.31843755,0.00027,5]
[330606445,1719611442670,-151.30332686,0.00027,5]
[330606447,1719611442679,-779.63,0.00027123,4]
[330606449,1719611442689,-1050.94,0.00027123,4]
[330606452,1719611442698,-622.36,0.00027123,4]
[330606455,1719611442708,-328.146807,0.00027195,2]
[330606458,1719611442718,-779.63,0.00027397,4]
[330606461,1719611442727,-1050.94,0.00027397,4]
[330606464,1719611442737,-622.36,0.00027397,4]
[330606467,1719611442746,-151.31843755,0.0002754,5]
[330606470,1719611442755,-151.30332686,0.0002754,5]
[330606471,1719611442765,-779.63,0.00027671,4]
[330606474,1719611442777,-1050.94,0.00027671,4]
[330606477,1719611442787,-622.36,0.00027671,4]
[330606479,1719611442797,-779.63,0.00027945,4]
[330606480,1719611442806,-1050.94,0.00027945,4]
[330606483,1719611442817,-622.36,0.00027945,4]
[330606487,1719611442827,-9151.20525274,0.00027989,3]
[330606496,1719611443402,-500.0,0.00021917,4]
[330606497,1719611443412,-469.13,0.00022191,4]
[330606498,1719611443422,-1018.34513661,0.00027989,3]
[330606524,1719611446272,-38920.26039605,0.00027989,3]
[330606525,1719611446282,-151.31843755,0.0002808,5]
[330606526,1719611446291,-151.30332686,0.0002808,5]
[330606527,1719611446300,-779.84,0.00028219,4]
[330606528,1719611446310,-1051.09007,0.00028219,4]
[330606529,1719611446319,-622.36957882,0.00028219,4]
[330606530,1719611446327,-151.31843755,0.0002862,5]
[330606532,1719611446337,-151.30332686,0.0002862,5]
[330606533,1719611446346,-153.0,0.00028957,2]
[330606534,1719611446356,-153.0,0.00028959,2]
[330606535,1719611446365,-153.0,0.00028959,2]
[330606536,1719611446375,-153.0,0.00028959,2]
[330606537,1719611446384,-153.0,0.0002896,2]
[330606538,1719611446393,-151.31843755,0.0002916,5]
[330606539,1719611446403,-151.30332686,0.0002916,5]
[330606540,1719611446413,-151.31843755,0.000297,5]
[330606541,1719611446422,-151.30332686,0.000297,5]
[330606542,1719611446432,-324.97642874,0.0003,3]
[330606543,1719611446442,-168.1375,0.00030164,2]
[330606544,1719611446451,-190.56406804,0.00032573,2]
[330606545,1719611446461,-328.146807,0.00033295,2]
[330606546,1719611446470,-1140.72,0.00034562,4]
[330606547,1719611446479,-1140.72,0.00034562,4]
[330606548,1719611446488,-1140.72,0.00034562,4]
[330606549,1719611446497,-1075.37,0.00035616,3]
[330606550,1719611446507,-2050.67,0.00035616,3]
[330606551,1719611446516,-1284.76673272,0.00035999,4]
[330606552,1719611446525,-594.0,0.000363,2]
[330606554,1719611446534,-1221.94314551,0.00036351,30]
[330606556,1719611446543,-1115.46563636,0.00037259,4]
[330606558,1719611446552,-1091.08922655,0.00037259,2]
[330606559,1719611446561,-1180.73955517,0.00037523,4]
[330606560,1719611446570,-1180.73955517,0.00037523,4]
[330606561,1719611446579,-1027.10519307,0.00037807,4]
[330606562,1719611446589,-661.12832609,0.00037899,4]
[330606563,1719611446598,-530.74411189,0.00038264,30]
[330606564,1719611446608,-530.74411189,0.00038264,30]
[330606565,1719611446617,-500.0,0.00038356,4]
[330606566,1719611446626,-197.0122384,0.00038499,2]
[330606567,1719611446635,-276.15513312,0.00038999,4]
[330606568,1719611446644,-401.65252924,0.00039167,4]
[330606569,1719611446655,-244.67713238,0.00039167,4]
[330606570,1719611446664,-360.13523266,0.00039167,4]
[330606571,1719611446673,-160.76297495,0.00039177,4]
[330606572,1719611446682,-393.72383958,0.00039393,4]
[330606573,1719611446691,-328.146807,0.00039394,2]
[330606574,1719611446701,-1140.72,0.00039998,4]
[330606575,1719611446710,-5796.44432001,0.00039999,4]
[330606576,1719611446720,-215.00907563,0.00039999,4]
[330606577,1719611446730,-177.10579938,0.00040278,4]
[330606578,1719611446739,-150.78889555,0.00040956,2]
[330606579,1719611446749,-1140.72,0.00041074,4]
[330606580,1719611446758,-49089.8107854,0.00041085,4]
[330606581,1719611446769,-500.0,0.00041095,120]
[330606582,1719611446784,-5122.76616396,0.00041095,14]
[330606583,1719611446803,-1186.02286871,0.00041095,14]
[330606586,1719611628175,165.975442,0.00014904,2]
[330606587,1719611650059,1312.69310797,0.00014999,2]
[330606588,1719611653113,1956.46057478,0.00014999,2]
[330606589,1719611653852,440.38203034,0.00014999,2]
[330606591,1719611689429,661.30955175,0.00014999,2]
[330606592,1719611693215,1569.62433294,0.00014999,2]
[330606596,1719611821653,491.33508365,0.00014999,2]
[330606597,1719611835938,806.60844184,0.00014999,2]
[330606598,1719611847222,445.25676339,0.00014999,2]
[330606599,1719611980413,1226.81656383,0.00014999,2]
[330606601,1719612145822,374.10478077,0.00014999,2]
[330606602,1719612149157,165.975442,0.00014904,2]
[330606604,1719612294653,373.81482657,0.00014999,2]
[330606605,1719612436155,-243.46556165,0.00016255,2]
[330606606,1719612528566,470.0,0.00025999,120]
[330606607,1719612547174,-15245.38639099,0.00016255,2]
[330606608,1719612547195,-276.23399711,0.0001682,2]
[330606609,1719612547216,-276.23399711,0.0001682,2]
[330606610,1719612547238,-232.246075,0.00017745,2]
[330606611,1719612547258,-204.6626664,0.00018,2]
[330606612,1719612547278,-254.68636856,0.00018289,2]
[330606613,1719612547300,-24900.0,0.00018299,2]
[330606614,1719612547320,-154.80649189,0.0001858,2]
[330606615,1719612547340,-197.06317294,0.00019039,2]
[330606616,1719612547361,-250.0,0.00019041,2]
[330606617,1719612554218,187.12112758,0.000189,2]
[330606618,1719612600747,81.48971242,0.00019178,2]
[330606670,1719612638383,-99.93412158,0.00019178,2]
[330606671,1719612638395,-500.0,0.00019989,2]
[330606672,1719612638405,-500.0,0.00019989,2]
[330606673,1719612638417,-500.0,0.00019989,2]
[330606674,1719612638428,-500.0,0.00019989,2]
[330606675,1719612638438,-500.0,0.00019989,2]
[330606676,1719612638448,-550.0,0.00019989,2]
[330606677,1719612638459,-500.0,0.00019989,2]
[330606678,1719612638468,-500.0,0.00019989,2]
[330606679,1719612638478,-500.0,0.00019989,2]
[330606680,1719612638488,-500.0,0.00019989,2]
[330606681,1719612638498,-500.0,0.00019989,2]
[330606682,1719612638508,-500.0,0.00019989,2]
[330606683,1719612638517,-500.0,0.00019989,2]
[330606684,1719612638537,-500.0,0.00019989,2]
[330606685,1719612638548,-500.0,0.00019989,2]
[330606686,1719612638559,-433.98528117,0.00019989,2]
[330606687,1719612638571,-500.0,0.00019989,2]
[330606688,1719612638581,-12021.4482341,0.0001999,7]
[330606689,1719612638594,-6604.06401216,0.0001999,2]
[330606690,1719612638612,-625.44716545,0.0001999,2]
[330606691,1719612638626,-4412.82886566,0.0001999,2]
[330606763,1719612911579,164.274823,0.00014904,2]